[Event "ONJK-DE 2019"]
[Site "Borne"]
[Date "2019.08.06"]
[Round "3.12"]
[White "Boonen, Arvo"]
[Black "De Rycke, Killian"]
[Result "1-0"]
[ECO "B28"]
[WhiteElo "1129"]
[BlackElo "1319"]
[Annotator "NA"]
[PlyCount "69"]
[EventDate "2019.08.05"]
[EventType "swiss"]
[EventCountry "NED"]
[SourceTitle "playchess.com"]
[Source "ChessBase"]
[SourceQuality "1"]
[TimeControl "2400+30"]

1. e4 {[%emt 0:00:00]} e6 {[%emt 0:00:18]} 2. d4 {[%emt 0:00:00]} d5 {[%emt 0:00:00]} 3. e5 {[%emt 0:00:00]} c5 {[%emt 0:00:00]} 4. c3 {[%emt 0:00:04]} Nc6 {[%emt 0:00:00]} 5. Nf3 {[%emt 0:00:24]} a6 {[%emt 0:00:00]} 6. Bd3 {[%emt 0:00:25]} h6 {[%emt 0:00:00]} 7. Bf4 {[%emt 0:00:59]} f6 {[%emt 0:00:08]} 8. exf6 {[%emt 0:00:23]} Nxf6 {[%emt 0:00:07]} 9. O-O {[%emt 0:00:13]} Bd7 {[%emt 0:00:07]} 10. Re1 {[%emt 0:00:35]} Be7 {[%emt 0:00:10]} 11. Bg6+ {[%emt 0:00:17]} Kf8 {[%emt 0:00:26]} 12. dxc5 {[%emt 0:00:33]} Bxc5 {[%emt 0:00:14]} 13. Nd4 {[%emt 0:00:04]} Nxd4 {[%emt 0:00:13]} 14. cxd4 {[%emt 0:00:06]} Bb4 {[%emt 0:00:04]} 15. Nc3 {[%emt 0:00:17]} Ne4 {[%emt 0:00:19]} 16. Re3 {[%emt 0:01:01]} Bxc3 {[%emt 0:00:55]} 17. bxc3 {[%emt 0:00:07]} Qf6 {[%emt 0:00:13]} 18. Bxe4 {[%emt 0:00:30]} dxe4 {[%emt 0:00:36]} 19. Rxe4 {[%emt 0:00:09]} Bc6 {[%emt 0:00:13]} 20. Be5 {[%emt 0:00:28]} Qg5 {[%emt 0:00:33]} 21. Rg4 {[%emt 0:00:52]} Qe7 {[%emt 0:01:17]} 22. Bxg7+ {[%emt 0:00:22]} Qxg7 {[%emt 0:00:36]} 23. Rxg7 {[%emt 0:00:12]} Kxg7 {[%emt 0:00:02]} 24. Qg4+ {[%emt 0:00:38]} Kf7 {[%emt 0:00:15]} 25. Qf4+ {[%emt 0:00:23]} Ke7 {[%emt 0:00:25]} 26. f3 {[%emt 0:00:22]} Raf8 {[%emt 0:00:24]} 27. Qe3 {[%emt 0:00:43]} Rhg8 {[%emt 0:00:13]} 28. Rf1 {[%emt 0:00:21]} h5 {[%emt 0:00:30]} 29. c4 {[%emt 0:00:59]} Kd7 {[%emt 0:00:15]} 30. d5 {[%emt 0:00:47]} exd5 {[%emt 0:00:03]} 31. cxd5 {[%emt 0:00:06]} Bxd5 {[%emt 0:00:11]} 32. Rd1 {[%emt 0:00:06]} Kc6 {[%emt 0:00:54]} 33. Qc3+ {[%emt 0:00:38]} Kd6 {[%emt 0:00:22]} 34. Qd3 {[%emt 0:00:09]} Rg5 {[%emt 0:00:12]} 35. Qa3+ {[%emt 0:00:07]} 1-0

[Event "ONJK-DE 2019"]
[Site "Borne"]
[Date "2019.08.06"]
[Round "3.13"]
[White "De Vreugt Pezo, Max"]
[Black "Fallaux, Storm"]
[Result "0-1"]
[ECO "C50"]
[WhiteElo "1007"]
[BlackElo "1040"]
[Annotator "NA"]
[PlyCount "138"]
[EventDate "2019.08.05"]
[EventType "swiss"]
[EventCountry "NED"]
[SourceTitle "playchess.com"]
[Source "ChessBase"]
[SourceQuality "1"]
[TimeControl "2400+30"]

1. e4 {[%emt 0:00:00]} e5 {[%emt 0:00:00]} 2. Nf3 {[%emt 0:00:00]} Nc6 {[%emt 0:00:00]} 3. Nc3 {[%emt 0:00:00]} Nf6 {[%emt 0:00:00]} 4. Bc4 {[%emt 0:00:05]} Bc5 {[%emt 0:00:00]} 5. h3 {[%emt 0:00:40]} d6 {[%emt 0:00:05]} 6. d3 {[%emt 0:00:06]} h6 {[%emt 0:00:07]} 7. Bd2 {[%emt 0:00:31]} Be6 {[%emt 0:00:34]} 8. Bd5 {[%emt 0:00:37]} Bxd5 {[%emt 0:00:46]} 9. Nxd5 {[%emt 0:00:07]} O-O {[%emt 0:01:01]} 10. O-O {[%emt 0:00:27]} Nd4 {[%emt 0:02:23]} 11. c3 {[%emt 0:01:20]} Nxf3+ {[%emt 0:00:45]} 12. Qxf3 {[%emt 0:00:13]} Nxd5 {[%emt 0:00:41]} 13. exd5 {[%emt 0:00:10]} f5 {[%emt 0:03:20]} 14. Qe2 {[%emt 0:00:17]} Qd7 {[%emt 0:01:14]} 15. Be3 {[%emt 0:01:52]} Bxe3 {[%emt 0:00:45]} 16. Qxe3 {[%emt 0:00:47]} Qb5 {[%emt 0:00:59]} 17. b3 {[%emt 0:00:25]} Qxd5 {[%emt 0:00:46]} 18. Rfc1 {[%emt 0:00:32]} f4 {[%emt 0:01:42]} 19. Qe4 {[%emt 0:00:57]} Qxe4 {[%emt 0:00:24]} 20. dxe4 {[%emt 0:00:06]} Rad8 {[%emt 0:00:46]} 21. c4 {[%emt 0:00:06]} c6 {[%emt 0:00:19]} 22. Rd1 {[%emt 0:00:08]} b5 {[%emt 0:00:32]} 23. Rac1 {[%emt 0:00:26]} bxc4 {[%emt 0:00:34]} 24. Rxc4 {[%emt 0:00:09]} c5 {[%emt 0:00:42]} 25. Ra4 {[%emt 0:00:07]} Rd7 {[%emt 0:00:10]} 26. Rc4 {[%emt 0:00:33]} Rfd8 {[%emt 0:01:38]} 27. Rc2 {[%emt 0:00:04]} Kf7 {[%emt 0:00:29]} 28. Rcd2 {[%emt 0:00:09]} Ke6 {[%emt 0:00:33]} 29. Kf1 {[%emt 0:00:08]} Rb7 {[%emt 0:00:46]} 30. Rd5 {[%emt 0:00:27]} Rdd7 {[%emt 0:00:32]} 31. f3 {[%emt 0:00:15]} Rb4 {[%emt 0:00:55]} 32. Ke2 {[%emt 0:00:31]} Rd4 {[%emt 0:00:16]} 33. R5xd4 {[%emt 0:00:25]} exd4 {[%emt 0:00:50]} 34. Kd3 {[%emt 0:00:09]} d5 {[%emt 0:00:31]} 35. Re1 {[%emt 0:00:33]} g5 {[%emt 0:00:44]} 36. exd5+ {[%emt 0:00:17]} Kxd5 {[%emt 0:00:32]} 37. Re2 {[%emt 0:00:44]} a6 {[%emt 0:01:06]} 38. Re4 {[%emt 0:00:45]} Rd6 {[%emt 0:01:18]} 39. Re2 {[%emt 0:00:50]} Re6 {[%emt 0:00:16]} 40. Rxe6 {[%emt 0:00:39]} Kxe6 {[%emt 0:00:09]} 41. Ke4 {[%emt 0:00:27]} a5 {[%emt 0:00:26]} 42. a3 {[%emt 0:00:11]} h5 {[%emt 0:00:22]} 43. Kd3 {[%emt 0:00:15]} Kd5 {[%emt 0:00:15]} 44. a4 {[%emt 0:00:40]} h4 {[%emt 0:00:09]} 45. Kc2 {[%emt 0:00:14]} c4 {[%emt 0:00:08]} 46. bxc4+ {[%emt 0:01:04]} Kxc4 {[%emt 0:00:12]} 47. Kd2 {[%emt 0:00:17]} d3 {[%emt 0:00:18]} 48. Kd1 {[%emt 0:00:10]} Kb4 {[%emt 0:00:40]} 49. Kd2 {[%emt 0:00:06]} Kxa4 {[%emt 0:00:06]} 50. Kxd3 {[%emt 0:00:05]} Kb3 {[%emt 0:00:08]} 51. Ke4 {[%emt 0:00:06]} a4 {[%emt 0:00:07]} 52. Kf5 {[%emt 0:00:06]} a3 {[%emt 0:00:07]} 53. Kxg5 {[%emt 0:00:06]} a2 {[%emt 0:00:06]} 54. Kxh4 {[%emt 0:00:04]} a1=Q {[%emt 0:00:09]} 55. Kg4 {[%emt 0:00:02]} Qf6 {[%emt 0:00:13]} 56. Kh5 {[%emt 0:00:14]} Qg7 {[%emt 0:00:25]} 57. h4 {[%emt 0:00:09]} Qxg2 {[%emt 0:00:14]} 58. Kh6 {[%emt 0:00:06]} Qxf3 {[%emt 0:00:16]} 59. h5 {[%emt 0:00:06]} Qxh5+ {[%emt 0:00:12]} 60. Kxh5 {[%emt 0:00:07]} f3 {[%emt 0:00:08]} 61. Kg4 {[%emt 0:00:02]} f2 {[%emt 0:00:08]} 62. Kg3 {[%emt 0:00:02]} f1=Q {[%emt 0:00:03]} 63. Kg4 {[%emt 0:00:01]} Kc4 {[%emt 0:00:02]} 64. Kg5 {[%emt 0:00:02]} Kd5 {[%emt 0:00:01]} 65. Kg4 {[%emt 0:00:01]} Ke4 {[%emt 0:00:01]} 66. Kg5 {[%emt 0:00:02]} Qf5+ {[%emt 0:00:01]} 67. Kh4 {[%emt 0:00:01]} Qg6 {[%emt 0:00:01]} 68. Kh3 {[%emt 0:00:01]} Kf3 {[%emt 0:00:00]} 69. Kh2 {[%emt 0:00:02]} Qg2# {[%emt 0:00:01]} 0-1

[Event "ONJK-DE 2019"]
[Site "Borne"]
[Date "2019.08.06"]
[Round "3.14"]
[White "Visser, Alma"]
[Black "Pereira Garza, Cecilia"]
[Result "0-1"]
[ECO "C02"]
[WhiteElo "671"]
[BlackElo "966"]
[Annotator "NA"]
[PlyCount "74"]
[EventDate "2019.08.05"]
[EventType "swiss"]
[EventCountry "NED"]
[SourceTitle "playchess.com"]
[Source "ChessBase"]
[SourceQuality "1"]
[TimeControl "2400+30"]

1. e4 {[%emt 0:00:00]} e6 {[%emt 0:00:00]} 2. d4 {[%emt 0:00:15]} d5 {[%emt 0:00:00]} 3. e5 {[%emt 0:00:00]} c5 {[%emt 0:00:00]} 4. dxc5 {[%emt 0:00:31]} Bxc5 {[%emt 0:00:20]} 5. Bb5+ {[%emt 0:00:55]} Nc6 {[%emt 0:00:56]} 6. Bd2 {[%emt 0:01:07]} Bd7 {[%emt 0:00:50]} 7. b4 {[%emt 0:00:43]} Bd4 {[%emt 0:00:53]} 8. c3 {[%emt 0:00:18]} Bxe5 {[%emt 0:00:17]} 9. f4 {[%emt 0:01:06]} Bd6 {[%emt 0:01:18]} 10. Nf3 {[%emt 0:01:14]} Nf6 {[%emt 0:00:35]} 11. O-O {[%emt 0:02:12]} Qb6+ {[%emt 0:00:21]} 12. Nd4 {[%emt 0:01:54]} Nxd4 {[%emt 0:00:15]} 13. Bxd7+ {[%emt 0:00:35]} Nxd7 {[%emt 0:00:10]} 14. Be3 {[%emt 0:00:32]} e5 {[%emt 0:02:07]} 15. cxd4 {[%emt 0:00:39]} exf4 {[%emt 0:00:31]} 16. Bf2 {[%emt 0:00:58]} O-O {[%emt 0:01:44]} 17. a3 {[%emt 0:00:37]} Qc7 {[%emt 0:00:44]} 18. Qd2 {[%emt 0:01:55]} f3 {[%emt 0:01:14]} 19. g3 {[%emt 0:00:24]} Nf6 {[%emt 0:01:46]} 20. Qe3 {[%emt 0:01:18]} Rfe8 {[%emt 0:02:06]} 21. Qxf3 {[%emt 0:00:30]} Ne4 {[%emt 0:01:22]} 22. Be3 {[%emt 0:02:11]} Re6 {[%emt 0:01:38]} 23. Ra2 {[%emt 0:01:38]} Rf6 {[%emt 0:00:44]} 24. Qh5 {[%emt 0:01:21]} Rxf1+ {[%emt 0:00:34]} 25. Kxf1 {[%emt 0:00:49]} Qc4+ {[%emt 0:00:35]} 26. Re2 {[%emt 0:00:57]} Bxg3 {[%emt 0:00:40]} 27. Qg4 {[%emt 0:01:00]} Bxh2 {[%emt 0:00:43]} 28. Bh6 {[%emt 0:00:31]} Ng3+ {[%emt 0:01:48]} 29. Kf2 {[%emt 0:00:22]} g6 {[%emt 0:01:30]} 30. Re3 {[%emt 0:01:15]} Qc2+ {[%emt 0:01:08]} 31. Kf3 {[%emt 0:01:07]} Qd1+ {[%emt 0:00:28]} 32. Kf4 {[%emt 0:00:56]} Ne4+ {[%emt 0:01:41]} 33. Rg3 {[%emt 0:03:07]} Bxg3+ {[%emt 0:00:32]} 34. Ke3 {[%emt 0:00:50]} Qxg4 {[%emt 0:00:22]} 35. Kd3 {[%emt 0:00:41]} Bf2 {[%emt 0:00:25]} 36. Bc1 {[%emt 0:03:10]} Rc8 {[%emt 0:00:32]} 37. Bb2 {[%emt 0:00:16]} Qf3# {[%emt 0:00:26]} 0-1